bitfinex-derivatives/quotes_ETHF0:USTF0_20241105
["timestamp","ask_amount","ask_price","bid_price","bid_amount"]
[1730807923251,0.94288,2441.5,2441.4,0.40976]
[1730807924045,0.40978,2441.5,2441.4,0.40976]
[1730807929757,3.2078,2441.7,2441.4,1.18060268]
[1730807929957,0.40975,2441.7,2441.6,1.59032268]
[1730807930168,0.40972,2441.8,2441.7,0.40971]
[1730807930459,0.40969,2442.0,2441.9,0.40968]
[1730807930664,0.40969,2442.0,2441.9,1.59028268]
[1730807931062,0.40969,2442.0,2441.9,2.27000268]
[1730807932654,0.40969,2442.0,2441.9,2.67970268]
[1730807933873,0.40969,2442.0,2441.9,1.4991]
[1730807934369,0.40969,2442.0,2441.9,1.72733425]
[1730807935369,0.95607,2442.1,2442.0,0.40968]
[1730807935563,0.40967,2442.1,2442.0,1.81851199]
[1730807935864,0.40967,2442.1,2442.0,1.59028268]
[1730807936061,0.40967,2442.1,2442.0,1.81848476]
[1730807939562,0.40967,2442.1,2442.0,1.59028268]
[1730807939763,0.40967,2442.1,2442.0,1.81821841]
[1730807941064,0.40967,2442.1,2442.0,0.63761573]
[1730807941965,0.40967,2442.1,2442.0,0.40968]
[1730807942165,0.40967,2442.1,2442.0,0.63765346]
[1730807945663,0.40967,2442.1,2442.0,0.40968]
[1730807945865,0.40967,2442.1,2442.0,0.63762476]
[1730807947164,0.40967,2442.1,2442.0,0.22794476]
[1730807947577,0.40967,2442.1,2442.0,0.63762476]
[1730807948880,0.40967,2442.1,2442.0,0.22794476]
[1730807949068,0.40967,2442.1,2442.0,0.63762476]
[1730807949577,1.59027268,2442.1,2442.0,0.22794476]
[1730807950472,0.4097,2441.9,2441.8,0.5311]
[1730807950775,0.4097,2441.9,2441.8,1.16873172]
[1730807950982,0.4097,2441.9,2441.8,0.75902172]
[1730807951176,0.4097,2441.9,2441.8,1.16873172]
[1730807952978,0.4097,2441.9,2441.8,0.94081]
[1730807953176,0.4097,2441.9,2441.8,1.168738]
[1730807955978,0.4097,2441.9,2441.8,0.759028]
[1730807956685,1.0695,2442.0,2441.7,0.40973]
[1730807956887,0.40975,2441.6,2441.5,4.70314]
[1730807957076,0.40975,2441.6,2441.5,2.03929453]
[1730807957277,0.40975,2441.6,2441.5,1.72328704]
[1730807957985,0.40975,2441.6,2441.5,1.72329017]
[1730807963993,0.40975,2441.6,2441.5,1.72324077]
[1730807974414,0.40975,2441.6,2441.5,1.49534]
[1730807974804,0.40975,2441.6,2441.5,1.72321647]
[1730807975404,0.40975,2441.6,2441.5,1.49534]
[1730807975711,0.40975,2441.6,2441.5,1.72322697]
[1730807978109,0.40975,2441.6,2441.5,1.49534]
[1730807978311,0.40975,2441.6,2441.5,1.72321406]
[1730807978605,0.40975,2441.6,2441.5,1.72320872]
[1730807985719,0.40975,2441.6,2441.5,1.49534]
[1730807985921,0.40975,2441.6,2441.5,1.7232479]
[1730807986619,0.40975,2441.6,2441.5,1.72325659]
[1730807988214,0.40975,2441.6,2441.5,1.72326813]
[1730807992730,0.95905,2441.7,2441.6,0.40975]
[1730807992924,0.95905,2441.7,2441.6,0.63767813]
[1730807993123,0.95905,2441.7,2441.6,0.63780024]
[1730807994031,0.95905,2441.7,2441.6,0.40975]
[1730807994329,0.95905,2441.7,2441.6,0.63783308]
[1730807996226,0.95905,2441.7,2441.6,1.18387362]
[1730807997334,6.43073935,2441.9,2441.6,2.3644763]
[1730807997636,0.40973,2441.8,2441.7,0.63779308]
[1730807997929,0.40973,2441.8,2441.7,1.17399308]
[1730807998528,0.40973,2441.8,2441.7,1.72008603]
[1730808000333,0.93851,2441.9,2441.8,0.40971]
[1730808000527,3.22293935,2442.0,2441.9,0.4097]
[1730808000728,3.2078,2442.1,2442.0,0.40968]
[1730808000931,3.2078,2442.1,2442.0,1.18394344]
[1730808001134,3.2078,2442.1,2442.0,0.40968]
[1730808001349,3.2078,2442.1,2442.0,1.18407815]
[1730808002234,3.61746,2442.1,2442.0,0.63794308]
[1730808002735,7.71266,2442.1,2442.0,0.22826308]
[1730808003440,7.71266,2442.1,2441.7,4.15372]
[1730808003441,0.40971,2441.9,2441.8,0.4097]
[1730808003637,40.8,2441.9,2441.8,1.59030268]
[1730808003835,41.2097,2441.9,2441.8,1.59030268]
[1730808004049,40.8,2441.9,2441.8,2.36423668]
[1730808004546,40.8,2441.9,2441.8,1.183634]
[1730808005037,41.2097,2441.9,2441.8,1.183634]
[1730808005233,40.8,2441.9,2441.8,1.183634]
[1730808005930,3.2078,2442.1,2441.8,0.773934]
[1730808006133,3.2078,2442.1,2442.0,1.59028268]
[1730808006429,3.2078,2442.1,2442.0,1.18337447]
[1730808007340,3.2078,2442.1,2442.0,0.40968]
[1730808007539,3.2078,2442.1,2442.0,1.136405]
[1730808007838,3.2078,2442.1,2442.0,1.68191853]
[1730808008239,3.2078,2442.1,2442.0,1.136405]
[1730808008543,3.2078,2442.1,2442.0,1.68166698]
[1730808009042,3.2078,2442.1,2442.0,2.86226966]
[1730808009437,40.8,2442.3,2442.2,0.40965]
[1730808009635,40.8,2442.3,2442.2,1.81827768]
[1730808010041,1.5434,2442.6,2442.2,0.228025]
[1730808010243,0.40963,2442.4,2442.3,1.657845]
[1730808010547,41.20963,2442.4,2442.3,1.657845]
[1730808010749,0.40963,2442.4,2442.3,1.657845]
[1730808010940,1.95298,2442.6,2442.5,0.4096]
[1730808011241,1.45238,2442.6,2442.5,0.4096]
[1730808011443,0.4096,2442.5,2442.4,0.92761]
[1730808013034,0.90769,2442.6,2442.4,0.518]
[1730808013250,0.90769,2442.6,2442.5,0.4096]
[1730808013547,44.02149501,2443.0,2442.5,0.4096]
[1730808013548,40.8,2443.0,2442.5,2.20460268]
[1730808013845,0.40955,2442.8,2442.7,0.40956]
[1730808014046,0.40955,2442.8,2442.7,0.5144]
[1730808014439,0.40955,2442.8,2442.7,0.92396]
[1730808015446,0.40955,2442.8,2442.7,0.5144]
[1730808016345,0.40955,2442.8,2442.7,0.92396]
[1730808016549,0.40955,2442.8,2442.7,0.5144]
[1730808017053,0.40955,2442.8,2442.7,0.92396]
[1730808019448,41.3165,2443.0,2442.7,1.69500268]
[1730808019643,0.95998,2443.2,2443.1,0.4095]
[1730808019945,0.95998,2443.2,2443.1,1.59008268]
[1730808019946,0.40948,2443.2,2443.1,1.59008268]
[1730808020153,41.20948,2443.2,2443.1,1.59008268]
[1730808020553,41.20948,2443.2,2443.1,2.12088268]
[1730808020748,40.8,2443.2,2443.1,2.12088268]
[1730808021553,0.40945,2443.4,2443.1,2.12088268]
[1730808021855,0.40945,2443.4,2443.3,0.40946]
[1730808022039,0.40945,2443.4,2443.3,1.59006268]
[1730808022244,41.20945,2443.4,2443.3,2.12616268]
[1730808023344,41.20945,2443.4,2443.3,0.94556]
[1730808025661,0.40948,2443.2,2443.1,4.14808]
[1730808026744,0.40947,2443.3,2443.2,0.40946]
[1730808026949,0.40947,2443.3,2443.2,0.95916]
[1730808029343,40.8,2443.4,2443.2,0.5497]
[1730808029543,40.8,2443.4,2443.0,1.18060268]
[1730808029544,43.00423268,2443.4,2443.0,0.40951]
[1730808029749,41.98060268,2443.4,2443.0,0.40951]
[1730808029948,0.40951,2443.1,2443.0,0.4095]
[1730808030147,41.98060268,2443.4,2442.9,0.5088]
[1730808030351,0.40949,2443.2,2443.1,0.40948]
[1730808030947,41.82363,2443.4,2443.1,0.40948]
[1730808030948,40.8,2443.4,2443.1,1.18060268]
[1730808031463,0.40948,2443.2,2443.1,1.59007268]
[1730808031659,0.40948,2443.2,2443.1,0.40947]
[1730808032049,0.40948,2443.2,2443.1,0.91237]
[1730808032754,0.40947,2443.3,2443.2,0.40946]
[1730808035154,0.40948,2443.2,2443.1,0.91237]
[1730808035458,0.95968,2443.2,2443.1,0.40947]
[1730808036859,0.5502,2443.2,2443.1,0.40947]
[1730808037063,0.95968,2443.2,2443.1,0.40947]
[1730808037960,0.5502,2443.2,2443.1,1.59007268]
[1730808039073,40.8,2443.4,2443.2,0.40948]
[1730808039074,0.40947,2443.3,2443.2,0.40948]
[1730808039265,0.40947,2443.3,2443.2,2.10288268]
[1730808039466,41.71086,2443.4,2443.3,0.40946]
[1730808039661,0.5014,2443.4,2443.3,0.40946]
[1730808039861,0.91084,2443.4,2443.3,0.93006]
[1730808040062,0.5014,2443.4,2443.3,0.93006]
[1730808042360,0.91084,2443.4,2443.3,0.93006]
[1730808042960,0.5014,2443.4,2443.3,0.93006]
[1730808043163,0.91084,2443.4,2443.3,0.93006]
[1730808043370,0.5014,2443.4,2443.3,2.11066268]
[1730808043559,0.91084,2443.4,2443.3,2.11066268]
[1730808043762,0.5014,2443.4,2443.3,2.11066268]
[1730808044668,4.14394,2443.5,2443.3,1.70120268]
[1730808044669,3.2078,2443.5,2443.3,1.70120268]
[1730808044869,3.2078,2443.5,2443.4,1.59004268]
[1730808045363,3.61723,2443.5,2443.4,1.59004268]
[1730808045757,3.2078,2443.5,2443.4,1.59004268]
[1730808046461,41.2094,2443.8,2443.7,0.40939]
[1730808047676,0.4094,2443.8,2443.7,0.40939]
[1730808049981,41.72758,2443.9,2443.8,0.40938]
[1730808050875,0.40938,2443.8,2443.7,0.5138]
[1730808051171,1.54163,2443.9,2443.4,3.2078]
[1730808051368,0.40943,2443.6,2443.5,1.59001268]
[1730808051779,0.93133,2443.6,2443.5,1.59001268]
[1730808053168,0.54118371,2443.6,2443.5,1.59001268]
[1730808053382,0.95059371,2443.6,2443.5,1.59001268]
[1730808053776,0.01928371,2443.6,2443.5,1.59001268]
[1730808056382,0.01928371,2443.6,2443.5,4.79781268]
[1730808057180,0.42869371,2443.6,2443.5,4.79781268]
[1730808057371,0.42869371,2443.6,2443.5,3.61721]
[1730808058279,0.01928371,2443.6,2443.5,3.61721]
[1730808058474,0.42869371,2443.6,2443.5,4.14291]
[1730808059269,0.42869371,2443.6,2443.5,0.93511]
[1730808059675,0.42869371,2443.6,2443.5,4.14291]
[1730808061282,0.42869371,2443.6,2443.5,4.36989682]
[1730808061573,0.40944,2443.4,2443.3,1.49475]
[1730808062077,0.40944,2443.4,2443.3,1.0853]
[1730808062375,0.40944,2443.4,2443.2,0.93077]
[1730808062376,0.40946,2443.3,2443.2,0.93077]
[1730808062580,0.40946,2443.3,2443.2,0.40947]
[1730808062968,1.19988639,2443.4,2443.0,1.0292]
[1730808063177,0.5143,2443.2,2443.0,1.4387]
[1730808063479,0.4095,2443.1,2443.0,2.61930268]
[1730808063675,0.4095,2443.1,2443.0,2.84659803]
[1730808064087,0.4095,2443.1,2443.0,2.61930268]
[1730808064273,0.95788371,2443.1,2443.0,2.61930268]
[1730808064676,0.95788371,2443.1,2443.0,2.84666106]
[1730808065275,0.54838371,2443.1,2443.0,2.84666106]
[1730808066484,0.95788371,2443.1,2443.0,2.84666106]
[1730808066887,0.54838371,2443.1,2443.0,2.84666106]
[1730808067083,0.01928371,2443.1,2443.0,2.84666106]
[1730808067288,0.01928371,2443.1,2443.0,6.94026106]
[1730808067487,0.01928371,2443.1,2443.0,7.99136854]
[1730808067781,0.01928371,2443.1,2443.0,9.94479503]
[1730808068289,3.2078,2443.5,2443.4,0.40944]
[1730808068588,0.529,2443.5,2443.4,0.63677712]
[1730808068781,0.529,2443.5,2443.4,1.8173798]
[1730808068984,0.5084,2443.7,2443.4,5.9101798]
[1730808068985,0.91781,2443.7,2443.4,5.9101798]
[1730808069289,0.529,2443.7,2443.6,1.59001268]
[1730808069683,0.529,2443.7,2443.6,1.81726835]
[1730808071291,0.529,2443.7,2443.6,1.59001268]
[1730808071491,3.2078,2444.0,2443.9,0.40936]
[1730808071686,3.2078,2444.0,2443.9,1.58996268]
[1730808071885,3.61714,2444.0,2443.9,1.58996268]
[1730808072085,3.61714,2444.0,2443.9,0.40936]
[1730808072481,7.2998,2444.0,2443.5,3.711]
[1730808072686,0.40939,2443.8,2443.7,0.40939]
[1730808072885,0.40939,2443.8,2443.7,0.63662096]
[1730808073085,1.50129,2443.8,2443.7,0.40939]
[1730808076381,0.40939,2443.7,2443.6,1.58999268]
[1730808076586,0.40939,2443.7,2443.6,1.81719117]
[1730808077594,0.40939,2443.7,2443.6,1.40780117]
[1730808077791,0.40939,2443.7,2443.6,1.81721117]
[1730808078095,1.0919,2443.8,2443.6,1.40780117]
[1730808078291,1.50129,2443.8,2443.7,1.58999268]
[1730808078691,1.0919,2443.8,2443.7,1.58999268]
[1730808078991,0.40935,2444.0,2443.9,0.40934]
[1730808080100,0.40935,2444.0,2443.9,2.10904268]
[1730808081000,4.12394,2444.1,2444.0,0.40934]
[1730808081187,0.5068,2444.1,2444.0,1.58994268]
[1730808081394,0.91613,2444.1,2444.0,1.58994268]
[1730808083998,0.91722,2444.2,2444.1,0.40933]
[1730808084399,0.40932,2444.2,2444.1,0.95283]
[1730808084697,0.9409,2444.3,2444.2,0.40931]
[1730808084892,0.9409,2444.3,2444.2,2.11661268]
[1730808085592,0.5316,2444.3,2444.2,2.11661268]
[1730808086503,0.94089,2444.3,2444.2,2.11661268]
[1730808089004,0.94089,2444.3,2444.1,0.5435]
[1730808089005,0.40931,2444.2,2444.1,2.13342268]
[1730808090595,0.40931,2444.2,2444.1,2.13343268]
[1730808090799,0.40934,2444.1,2444.0,1.58993268]
[1730808091497,41.20934,2444.1,2444.0,1.58993268]
[1730808092504,0.40934,2444.1,2444.0,1.58993268]
[1730808095605,0.40934,2444.0,2443.9,0.95546]
[1730808095800,0.40938,2443.9,2443.8,0.40936]
[1730808096000,0.40938,2443.9,2443.7,5.49760268]
[1730808096001,0.40938,2443.8,2443.7,4.72638]
[1730808096207,0.40938,2443.8,2443.7,3.84413424]
[1730808096905,0.40938,2443.8,2443.7,3.43475424]
[1730808097106,0.40938,2443.8,2443.7,3.61719]
[1730808097702,0.40939,2443.7,2443.6,1.72930268]
[1730808097901,0.40939,2443.7,2443.6,1.18060268]
[1730808097902,0.95319,2443.7,2443.6,1.18060268]
[1730808098108,0.95319,2443.7,2443.6,1.59001268]
[1730808098310,0.40942,2443.6,2443.5,1.59001268]
[1730808098512,0.92622,2443.6,2443.5,1.81705269]
[1730808098907,0.92622,2443.6,2443.5,1.59001268]
[1730808099708,0.92622,2443.6,2443.5,1.81702925]
[1730808100014,0.92622,2443.6,2443.5,1.59001268]
[1730808101212,0.95321,2443.7,2443.6,0.40941]
[1730808101409,1.45911,2443.7,2443.6,0.40941]
[1730808102205,0.40945,2443.5,2443.4,0.40944]
[1730808102510,7.34582268,2443.7,2443.3,0.40945]
[1730808102511,0.40944,2443.4,2443.3,0.40945]
[1730808102714,0.40944,2443.4,2443.3,1.81713305]
[1730808102912,0.40944,2443.4,2443.3,0.63654037]
[1730808103101,0.40944,2443.4,2443.2,0.5447]
[1730808103303,0.96446,2443.3,2443.2,0.95417]
[1730808103502,0.96446,2443.3,2443.2,2.13477268]
[1730808104006,0.96446,2443.3,2442.8,1.07422985]
[1730808104007,4.6478,2443.3,2442.8,1.07422985]
[1730808104304,0.40952,2443.0,2442.9,2.36919757]
[1730808104610,0.40952,2443.0,2442.9,1.81720428]
[1730808105111,0.40951,2443.1,2443.0,0.4095]
[1730808105501,4.50311,2443.1,2443.0,0.4095]
[1730808107414,0.96448,2443.3,2442.9,2.20442268]
[1730808107712,0.96448,2443.3,2443.2,1.59008268]
[1730808109301,0.96448,2443.3,2443.2,0.40948]
[1730808110212,0.40949,2443.2,2443.1,0.40948]
[1730808112105,0.96447,2443.3,2443.2,0.40948]
[1730808115009,0.555,2443.3,2443.0,1.6153]
[1730808115207,0.96448,2443.3,2443.2,0.40948]
[1730808115412,0.40949,2443.2,2443.1,0.40948]
[1730808116007,0.4095,2443.1,2443.0,2.02481]
[1730808116310,0.40951,2443.0,2442.9,0.40952]
[1730808116505,0.40951,2443.0,2442.9,0.63654059]
[1730808116706,0.40951,2443.1,2443.0,0.4095]
[1730808116905,0.91991,2443.1,2443.0,0.4095]
[1730808117103,0.5104,2443.1,2442.8,3.7643]
[1730808117318,0.40953,2442.9,2442.8,4.17382]
[1730808117617,0.40953,2442.9,2442.8,4.40081751]
[1730808118111,0.40953,2442.9,2442.8,3.99129751]
[1730808118417,0.40953,2442.9,2442.8,4.17385]
[1730808119415,0.40953,2442.9,2442.8,3.61735]
[1730808119806,0.40953,2442.9,2442.8,3.2078]
[1730808120817,4.50313,2442.9,2442.8,3.2078]
[1730808121004,5.11745,2442.9,2442.5,1.0479]
[1730808121204,0.40958,2442.6,2442.5,1.45749]
[1730808122311,0.40957,2442.7,2442.6,0.40956]
[1730808122813,3.2078,2442.9,2442.5,1.0479]
[1730808123016,3.2078,2442.9,2442.5,4.62818521]
[1730808123210,3.61734,2442.9,2442.8,0.40955]
[1730808123905,0.40954,2442.9,2442.8,0.40955]
[1730808124107,0.40954,2442.9,2442.7,0.5218]
[1730808124313,0.40954,2442.9,2442.8,0.40955]
[1730808124515,0.40955,2442.8,2442.7,0.5218]
[1730808124912,0.40955,2442.8,2442.4,3.6174]
[1730808124913,4.0936,2442.8,2442.4,3.6174]
[1730808125111,0.4096,2442.5,2442.4,3.2078]
[1730808126910,1.039,2442.6,2442.3,0.40962]
[1730808127106,1.039,2442.6,2442.2,4.12983]
[1730808127107,0.40963,2442.3,2442.2,4.12983]
[1730808127313,0.40963,2442.3,2442.2,3.7202]
[1730808127619,0.40963,2442.3,2442.2,3.2078]
[1730808128801,1.024,2442.5,2442.1,0.40964]
[1730808128802,0.40966,2442.2,2442.1,0.40964]
[1730808129716,0.40966,2442.1,2442.0,0.5349]
[1730808129917,0.5339,2442.1,2441.9,1.47829]
[1730808130121,0.94358,2442.1,2442.0,0.40968]
[1730808130413,0.93446,2442.2,2441.9,3.62489521]
[1730808130620,0.40966,2442.2,2442.1,0.40966]
[1730808133014,0.5339,2442.3,2441.9,1.0686]
[1730808133211,0.40966,2442.2,2442.1,0.40965]
[1730808133715,0.40966,2442.2,2442.1,0.40966]
[1730808134112,0.94354,2442.3,2442.2,0.40965]
[1730808134317,3.2078,2442.4,2442.1,2.55629521]
[1730808134510,3.2078,2442.4,2442.3,0.40963]
[1730808134511,3.61743,2442.4,2442.3,0.40963]
[1730808134713,0.40963,2442.3,2442.2,0.95304]
[1730808140220,0.40962,2442.5,2442.4,0.4096]
[1730808140422,0.5548,2442.6,2442.3,1.0727]
[1730808140621,0.40961,2442.5,2442.4,0.4096]
[1730808141625,0.40961,2442.4,2442.3,1.0727]
[1730808143432,0.5435,2442.5,2442.2,3.7512]
[1730808143619,0.92413,2442.3,2442.2,0.5434]
[1730808144829,0.92413,2442.3,2442.2,0.95305]
[1730808145128,0.92413,2442.3,2442.2,0.5434]
[1730808152522,0.40965,2442.2,2442.1,0.40966]
[1730808154438,0.40968,2442.1,2442.0,0.40967]
[1730808157031,1.53859,2442.3,2441.9,1.0546]
[1730808157032,0.40968,2442.0,2441.9,1.0546]
[1730808157333,0.94948,2442.0,2441.9,1.0546]
[1730808157930,1.49288,2442.0,2441.9,1.0546]
[1730808158336,1.49288,2442.0,2441.9,1.4643]
[1730808158535,1.49288,2442.0,2441.9,1.0546]
[1730808159436,1.49288,2442.0,2441.9,1.4643]
[1730808159632,1.49288,2442.0,2441.9,1.0546]
[1730808160335,1.49288,2442.0,2441.9,1.28193469]
[1730808160636,1.49288,2442.0,2441.9,1.0546]
[1730808161241,1.49288,2442.0,2441.9,1.4643]
[1730808161437,1.49288,2442.0,2441.9,1.69169745]
[1730808161654,0.94948,2442.0,2441.9,1.69169745]
[1730808162240,3.7575,2442.2,2441.9,1.0546]
[1730808162540,3.2078,2442.2,2442.1,0.40966]
[1730808162838,0.40966,2442.1,2442.0,0.94607]
[1730808163044,0.40966,2442.1,2442.0,1.17346482]
[1730808163444,0.40966,2442.1,2442.0,1.1735757]
[1730808165236,0.40966,2442.1,2442.0,0.2275057]
[1730808165839,40.8,2442.1,2441.7,1.49702]
[1730808166138,0.40971,2441.8,2441.7,1.49702]
[1730808166445,0.40971,2441.8,2441.7,1.86694939]
[1730808166841,0.40971,2441.8,2441.7,1.72477313]
[1730808167443,0.40971,2441.8,2441.7,1.31504313]
[1730808168244,0.40971,2441.8,2441.7,0.22774313]
[1730808168646,0.91931,2441.8,2441.7,0.22774313]
[1730808168953,0.91931,2441.8,2441.5,1.0919]
[1730808169164,0.40971,2441.8,2441.7,0.40973]
[1730808169757,0.40971,2441.8,2441.7,0.63752282]
[1730808170946,0.40971,2441.8,2441.7,0.22779282]
[1730808171253,5.88592837,2441.9,2441.6,0.40974]
[1730808171452,0.94383,2441.7,2441.6,0.40974]
[1730808171644,0.94383,2441.7,2441.6,0.63755919]
[1730808173141,0.94383,2441.7,2441.6,0.40974]
[1730808173345,0.94383,2441.7,2441.6,0.63753258]
[1730808176747,0.94383,2441.7,2441.6,0.63745109]
[1730808182962,0.94383,2441.7,2441.6,0.40974]
[1730808183161,0.94383,2441.7,2441.6,0.63741251]
[1730808186357,0.94383,2441.7,2441.6,0.63740277]
[1730808186755,2.12436028,2441.7,2441.6,0.22766277]
[1730808187058,0.40978,2441.4,2441.3,0.9302]
[1730808187258,0.40978,2441.4,2441.3,1.28638634]
[1730808187764,0.40978,2441.4,2441.3,0.76598634]
[1730808188061,1.18053028,2441.4,2441.2,0.5208]
[1730808188256,0.5554,2441.3,2441.1,1.0581]
[1730808188457,0.40983,2441.1,2441.0,1.9373686]
[1730808188656,0.40983,2441.1,2441.0,2.71683997]
[1730808189569,0.40983,2441.1,2441.0,3.12668997]
[1730808189768,0.40983,2441.1,2441.0,2.3472186]
[1730808190063,0.40983,2441.1,2441.0,2.16502885]
[1730808190666,0.40983,2441.1,2441.0,2.57487885]
[1730808191065,0.40982,2441.2,2441.1,0.40983]
[1730808191256,0.40982,2441.2,2441.1,0.63749025]
[1730808191863,0.40982,2441.2,2441.1,0.22766025]
[1730808192563,0.40982,2441.2,2441.1,0.63749025]
[1730808193061,0.40982,2441.2,2441.1,0.22766025]
[1730808193458,0.5554,2441.3,2441.0,3.11789888]
[1730808193667,0.40982,2441.2,2441.1,0.63736032]
[1730808193864,0.96521,2441.3,2441.2,0.40981]
[1730808194069,0.96521,2441.3,2441.2,0.63736032]
[1730808194257,0.5554,2441.3,2441.0,3.11789888]
[1730808194464,0.40983,2441.2,2441.1,0.63737043]
[1730808195258,0.96521,2441.3,2441.2,0.40981]
[1730808195664,0.96521,2441.3,2441.2,0.63735785]
[1730808195968,0.96521,2441.3,2441.2,0.40981]
[1730808196163,0.96521,2441.3,2441.2,0.63736014]
[1730808196467,0.40979,2441.4,2441.3,0.40978]
[1730808196672,0.5256,2441.5,2441.4,0.40978]
[1730808196869,0.5256,2441.5,2441.4,0.22756042]
[1730808197266,0.93536,2441.5,2441.4,0.22756042]
[1730808197863,0.40975,2441.6,2441.4,5.50411016]
[1730808198068,0.5256,2441.8,2441.5,0.22758939]
[1730808198263,0.40976,2441.6,2441.4,1.18053028]
[1730808198567,0.40976,2441.6,2441.5,0.22760205]
[1730808198971,0.5256,2441.8,2441.5,0.22760205]
[1730808199273,3.70233837,2442.0,2441.6,0.22760205]
[1730808199571,0.40972,2441.8,2441.7,1.0725]
[1730808203177,0.40975,2441.6,2441.5,3.2078]
[1730808203370,0.40975,2441.6,2441.5,3.99066094]
[1730808203972,0.40975,2441.6,2441.5,3.43556094]
[1730808204274,0.40975,2441.6,2441.5,3.2078]
[1730808204570,0.40975,2441.6,2441.5,3.43559267]
[1730808204775,4.50575,2441.6,2441.5,3.43556476]
[1730808204971,5.03535,2441.6,2441.5,3.43556476]
[1730808206874,4.6256,2441.6,2441.1,9.49422985]
[1730808207072,0.40981,2441.2,2441.1,4.132]
[1730808207282,0.40981,2441.2,2441.1,0.77994135]
[1730808207766,0.40983,2441.1,2441.0,0.93444]
[1730808207964,0.96083,2441.1,2441.0,0.93444]
[1730808208268,0.96083,2441.1,2441.0,7.19718295]
[1730808208674,0.551,2441.1,2441.0,6.31381921]
[1730808208876,0.5494,2441.3,2441.0,6.31381921]
[1730808208877,0.5494,2441.3,2441.0,6.78738948]
[1730808209069,0.95091,2441.3,2441.1,1.1897605]
[1730808209271,0.95091,2441.3,2441.2,0.77193817]
[1730808209979,0.95091,2441.3,2441.2,1.32409644]
[1730808210179,0.95091,2441.3,2441.2,1.32414919]
[1730808210678,0.95091,2441.3,2441.2,1.73395919]
[1730808211478,0.95091,2441.3,2441.2,1.18180433]
[1730808211683,0.95091,2441.3,2441.2,1.73407988]
[1730808213185,0.5411,2441.3,2441.2,1.73407988]
[1730808213372,3.21612837,2441.5,2441.2,1.73407988]
[1730808213373,0.94777,2441.5,2441.4,0.40978]
[1730808213568,0.94777,2441.5,2441.4,0.63767433]
[1730808213569,0.92817,2441.5,2441.4,0.63767433]
[1730808214982,0.92817,2441.5,2441.4,0.40978]
[1730808215179,0.5184,2441.5,2441.4,0.63769588]
[1730808215480,0.92816,2441.5,2441.4,1.17579588]
[1730808217484,0.92816,2441.5,2441.4,1.1758167]
[1730808218894,0.92816,2441.5,2441.4,0.94788]
[1730808219186,0.92816,2441.5,2441.4,1.17582097]
[1730808220081,0.92816,2441.5,2441.4,0.22794097]
[1730808220283,3.19652837,2441.5,2441.2,0.4098]
[1730808220482,0.40978,2441.4,2441.3,0.22796434]
[1730808220685,0.40978,2441.4,2441.3,0.63776434]
[1730808221187,0.40978,2441.4,2441.3,0.22796434]
[1730808221378,0.40978,2441.4,2441.3,0.63776434]
[1730808221578,0.40978,2441.4,2441.3,0.22796434]
[1730808222390,0.4098,2441.3,2441.2,0.40981]
[1730808222590,0.4098,2441.3,2441.2,0.9621857]
[1730808222793,0.4098,2441.3,2441.2,1.19012845]
[1730808225779,3.19652837,2441.5,2441.2,0.78031845]
[1730808225979,3.19652837,2441.5,2441.3,0.63772275]
[1730808225980,0.4098,2441.4,2441.3,0.63772275]
[1730808226383,0.4098,2441.4,2441.3,0.63771381]
[1730808226776,0.4098,2441.4,2441.3,0.40978]
[1730808228593,0.4098,2441.4,2441.3,0.63774478]
[1730808231187,0.4098,2441.4,2441.3,1.19026894]
[1730808231593,8.36472197,2441.4,2441.3,0.22796478]
[1730808231785,0.40986,2440.9,2440.8,0.94697]
[1730808231988,43.89292274,2441.1,2441.0,0.40985]
[1730808232485,40.8,2441.1,2441.0,0.40985]
[1730808233198,41.20983,2441.1,2441.0,0.40985]
[1730808233386,0.40986,2441.0,2440.9,0.40985]
[1730808233587,0.40986,2441.0,2440.9,0.96232142]
[1730808236194,0.40986,2441.0,2440.9,0.40985]
[1730808243800,0.40986,2441.0,2440.9,0.63709291]
[1730808245405,0.40986,2441.0,2440.9,0.63710415]
[1730808247295,0.40986,2441.0,2440.9,0.69870415]
[1730808249101,0.40986,2441.0,2440.9,0.69876698]
[1730808251200,0.40986,2441.0,2440.9,1.25108671]
[1730808251395,0.40986,2441.0,2440.9,1.25108476]
[1730808252509,0.40986,2441.0,2440.9,0.69876698]
[1730808253007,0.40986,2441.0,2440.9,0.28891698]
[1730808253209,0.40986,2441.0,2440.9,0.69877698]
[1730808253402,2.68308274,2441.1,2440.9,0.28891698]
[1730808253599,0.40985,2441.1,2441.0,0.63714698]
[1730808253803,0.40985,2441.1,2441.0,1.15584698]
[1730808256407,44.39640274,2441.2,2441.1,0.40983]
[1730808256714,0.91332,2441.2,2441.1,1.15260318]
[1730808256917,0.91332,2441.2,2441.1,1.67810318]
[1730808257410,0.40982,2441.2,2441.1,1.67810318]
[1730808257615,3.09289274,2441.3,2441.2,0.40981]
[1730808257807,0.40981,2441.3,2441.2,0.63718318]
[1730808261216,1.5906036,2441.3,2441.2,0.63718318]
[1730808263111,1.5906036,2441.3,2441.2,0.69868318]
[1730808263414,4.27368634,2441.3,2441.2,0.69868318]
[1730808263804,4.27368634,2441.3,2441.2,0.47131]
[1730808264009,4.27368634,2441.3,2441.2,0.69876518]
[1730808266109,4.27368634,2441.3,2441.2,1.25138194]
[1730808266305,4.27368634,2441.3,2441.2,1.25138358]
[1730808266516,4.27368634,2441.3,2441.2,0.69876518]
[1730808267116,4.27368634,2441.3,2441.2,1.25138729]
[1730808267418,4.27368634,2441.3,2441.2,0.47131]
[1730808267615,4.27368634,2441.3,2441.2,0.69881143]
[1730808268014,3.09289274,2441.3,2441.2,1.25144885]
[1730808268220,3.09289274,2441.3,2441.2,0.69881143]
[1730808268411,3.09289274,2441.3,2441.2,1.25145859]
[1730808268612,3.09289274,2441.3,2441.2,0.69881143]
[1730808268910,3.09289274,2441.3,2441.2,1.25145847]